fUST/lending_fUST_20251002
["ID","MTS","AMOUNT","RATE_DAILY","PERIOD"]
[388812852,1759385171680,559.78539423,0.00033549,60]
[388812853,1759385171848,469.12,0.00033549,60]
[388812854,1759385184677,500.0,0.00033549,60]
[388812855,1759385185293,212.8,0.00033549,60]
[388812856,1759385191879,480.0,0.00033549,60]
[388812857,1759385204742,480.0,0.00033549,60]
[388812858,1759385208605,480.0,0.00033549,60]
[388812859,1759385213915,500.0,0.00033549,60]
[388812860,1759385214178,589.04,0.00033549,60]
[388812861,1759385215670,480.0,0.00033549,60]
[388812862,1759385220411,480.0,0.00033549,60]
[388812863,1759385235284,500.0,0.00033549,60]
[388812864,1759385235525,460.0,0.00033549,60]
[388812865,1759385237091,-284.0,0.00020182,2]
[388812866,1759385237113,-284.0,0.0002021,2]
[388812867,1759385237133,-284.0,0.00020239,2]
[388812868,1759385237154,-284.0,0.00020319,2]
[388812869,1759385237174,-25.73114876,0.00020325,2]
[388812870,1759385246356,500.0,0.00033549,60]
[388812871,1759385246611,460.0,0.00033549,60]
[388812872,1759385250335,482.71101451,0.00033549,60]
[388812873,1759385258024,500.0,0.00033549,60]
[388812874,1759385258296,460.0,0.00033549,60]
[388812875,1759385266674,480.0,0.00033549,60]
[388812876,1759385272954,500.0,0.00033549,60]
[388812877,1759385273200,442.21,0.00033549,60]
[388812878,1759385279297,500.0,0.00033549,60]
[388812879,1759385279552,500.0,0.00033549,60]
[388812880,1759385279792,500.0,0.00033549,60]
[388812881,1759385280015,160.42,0.00033549,60]
[388812882,1759385283171,480.0,0.00033549,60]
[388812883,1759385283821,480.0,0.00033549,60]
[388812884,1759385285492,480.0,0.00033551,60]
[388812885,1759385286905,500.0,0.00033551,60]
[388812886,1759385287750,500.0,0.00033551,60]
[388812887,1759385287975,201.0,0.00033551,60]
[388812888,1759385290762,500.0,0.00033551,60]
[388812889,1759385291106,460.0,0.00033551,60]
[388812890,1759385297771,523.06015472,0.00033551,60]
[388812891,1759385310011,480.0,0.00033551,60]
[388812892,1759385310397,500.0,0.00033551,60]
[388812893,1759385310624,460.0,0.00033551,60]
[388812894,1759385311856,480.0,0.00033551,60]
[388812895,1759385323612,480.0,0.00033551,60]
[388812896,1759385330506,568.08,0.00033551,60]
[388812897,1759385332451,500.0,0.00033551,60]
[388812898,1759385332729,460.0,0.00033551,60]
[388812899,1759385334666,480.0,0.00033551,60]
[388812900,1759385334999,500.0,0.00033551,60]
[388812901,1759385335054,249.75944046,0.00033551,60]
[388812902,1759385335236,460.0,0.00033551,60]
[388812903,1759385336524,480.0,0.00033551,60]
[388812904,1759385336979,500.0,0.00033551,60]
[388812905,1759385337216,460.0,0.00033551,60]
[388812906,1759385345291,483.80958852,0.00033551,60]
[388812907,1759385360064,480.0,0.00033551,60]
[388812908,1759385362076,483.69455097,0.00033551,60]
[388812909,1759385362812,480.0,0.00033551,60]
[388812910,1759385363990,614.01505206,0.00033551,60]
[388812911,1759385366306,482.88944992,0.00033551,60]
[388812912,1759385367427,480.0,0.00033551,60]
[388812913,1759385374557,480.0,0.00033551,60]
[388812914,1759385374613,484.80118715,0.00033551,60]
[388812915,1759385376203,500.0,0.00033551,60]
[388812916,1759385376509,474.16,0.00033551,60]
[388812917,1759385380892,480.0,0.00033551,60]
[388812918,1759385382732,480.0,0.00033551,60]
[388812919,1759385384462,480.0,0.00033551,60]
[388812920,1759385391584,500.0,0.00033551,60]
[388812921,1759385391647,500.0,0.00033551,60]
[388812922,1759385391881,500.0,0.00033551,60]
[388812923,1759385391943,500.0,0.00033551,60]
[388812924,1759385392035,472.44,0.00033551,60]
[388812925,1759385392143,500.0,0.00033551,60]
[388812926,1759385392408,500.0,0.00033551,60]
[388812927,1759385392539,480.0,0.00033551,60]
[388812928,1759385392645,500.0,0.00033551,60]
[388812929,1759385392920,469.12,0.00033551,60]
[388812930,1759385394049,500.0,0.00033551,60]
[388812931,1759385394294,500.0,0.00033551,60]
[388812932,1759385394546,255.61,0.00033551,60]
[388812933,1759385401154,482.94184275,0.00033551,60]
[388812934,1759385407807,480.0,0.00033551,60]
[388812935,1759385409282,500.0,0.00033551,60]
[388812936,1759385409500,535.68,0.00033551,60]
[388812937,1759385409983,278.32,0.00033551,60]
[388812938,1759385410334,548.08,0.00033551,60]
[388812939,1759385412366,480.0,0.00033551,60]
[388812941,1759385418792,480.0,0.00033551,60]
[388812942,1759385422190,480.0,0.00033551,60]
[388812943,1759385427260,608.01,0.00033551,60]
[388812944,1759385429711,500.0,0.00033551,60]
[388812945,1759385429841,500.0,0.00033551,60]
[388812946,1759385430094,313.21,0.00033551,60]
[388813090,1759385433781,500.0,0.00033551,60]
[388813091,1759385434014,415.9,0.00033551,60]
[388813092,1759385434882,480.0,0.00033551,60]
[388813093,1759385437692,480.0,0.00033551,60]
[388813108,1759385438384,-258.26885124,0.00020325,2]
[388813109,1759385438404,-284.0,0.00020359,2]
[388813110,1759385438415,-284.0,0.00020381,2]
[388813111,1759385438424,-284.0,0.00020389,2]
[388813112,1759385438435,-284.0,0.00020419,2]
[388813113,1759385438445,-284.0,0.0002066,2]
[388813114,1759385438455,-1200.0,0.00020727,2]
[388813115,1759385438465,-284.0,0.00020728,2]
[388813116,1759385438475,-284.0,0.0002075,2]
[388813117,1759385438484,-300.0,0.00020783,2]
[388813118,1759385438494,-300.0,0.00020783,2]
[388813119,1759385438504,-1200.0,0.00020783,2]
[388813120,1759385438514,-6249.81778323,0.00020784,2]
[388813126,1759385441027,500.0,0.00033551,60]
[388813127,1759385441279,500.0,0.00033551,60]
[388813128,1759385441513,500.0,0.00033551,60]
[388813129,1759385441781,500.0,0.00033551,60]
[388813130,1759385442181,500.0,0.00033551,60]
[388813131,1759385442503,347.02,0.00033551,60]
[388813134,1759385442870,-635.0,0.00020784,2]
[388813147,1759385443542,-12767.84701866,0.00020784,2]
[388813148,1759385443552,-283.0,0.00020784,2]
[388813149,1759385443561,-183.57526215,0.00020784,2]
[388813150,1759385443571,-234.00747223,0.00020803,2]
[388813151,1759385443581,-160.0,0.00020814,2]
[388813152,1759385443590,-160.0,0.0002082,2]
[388813153,1759385443600,-160.0,0.00020821,2]
[388813154,1759385443609,-293.36416222,0.00020824,2]
[388813155,1759385443618,-284.0,0.00020831,2]
[388813156,1759385443627,-283.0,0.00020882,2]
[388813157,1759385443637,-283.0,0.00020894,2]
[388813158,1759385443646,-151.0,0.00020977,2]
[388813159,1759385443656,-151.0,0.00020977,2]
[388813160,1759385443665,-151.0,0.00020977,2]
[388813161,1759385443675,-151.0,0.00020977,2]
[388813162,1759385443684,-151.0,0.00020977,2]
[388813163,1759385443694,-151.0,0.00020977,2]
[388813164,1759385443703,-151.0,0.00020977,2]
[388813165,1759385443713,-151.0,0.00020977,2]
[388813166,1759385443723,-151.0,0.00020977,2]
[388813167,1759385443733,-151.0,0.00020977,2]
[388813168,1759385443742,-151.0,0.00020977,2]
[388813169,1759385443751,-151.0,0.00020977,2]
[388813170,1759385443760,-151.0,0.00020977,2]
[388813171,1759385443769,-151.0,0.00020977,2]
[388813172,1759385443778,-151.0,0.00020977,2]
[388813174,1759385443787,-151.0,0.00020977,2]
[388813175,1759385443796,-151.0,0.00020977,2]
[388813176,1759385443806,-151.0,0.00020977,2]
[388813177,1759385443815,-151.0,0.00020977,2]
[388813178,1759385443824,-153.76673585,0.00020977,2]
[388813180,1759385443833,-151.0,0.00020977,2]
[388813181,1759385443842,-500.0,0.00020977,2]
[388813182,1759385443850,-500.0,0.00020977,2]
[388813183,1759385443863,-500.0,0.00020977,2]
[388813184,1759385443873,-500.0,0.00020977,2]
[388813185,1759385443883,-500.0,0.00020977,2]
[388813186,1759385443893,-500.0,0.00020977,2]
[388813187,1759385443904,-500.0,0.00020977,2]
[388813188,1759385443915,-271.04663926,0.00020977,2]
[388813189,1759385443924,-527.3045014,0.00020979,2]
[388813190,1759385443937,-250.84,0.0002098,10]
[388813191,1759385443945,-457.15,0.0002098,10]
[388813192,1759385443955,-380.96,0.0002098,10]
[388813193,1759385443964,-317.47,0.0002098,10]
[388813194,1759385443973,-255.60251926,0.00020989,2]
[388813195,1759385443982,-170.27804519,0.00020989,2]
[388813196,1759385443992,-100000.0,0.0002099,2]
[388813197,1759385444002,-500.0,0.0002099,2]
[388813198,1759385444011,-474.70286793,0.00021243,2]
[388813199,1759385444021,-283.0,0.00021304,2]
[388813200,1759385444030,-283.0,0.00021343,2]
[388813201,1759385444039,-283.0,0.0002135,2]
[388813202,1759385444049,-283.0,0.00021394,2]
[388813203,1759385444058,-3000.0,0.000214,2]
[388813204,1759385444068,-283.0,0.00021674,2]
[388813205,1759385444078,-151.0,0.00021675,2]
[388813206,1759385444088,-167.12345062,0.00021675,2]
[388813207,1759385444097,-151.0,0.00021675,2]
[388813208,1759385444110,-151.0,0.00021675,2]
[388813209,1759385444121,-151.0,0.00021675,2]
[388813210,1759385444131,-152.44462235,0.00021675,2]
[388813211,1759385444141,-151.0,0.00021675,2]
[388813212,1759385444151,-500.0,0.00021675,2]
[388813213,1759385444160,-500.0,0.00021675,2]
[388813214,1759385444169,-151.0,0.00021675,2]
[388813215,1759385444179,-503.0,0.00021675,2]
[388813216,1759385444188,-151.0,0.00021675,2]
[388813217,1759385444198,-151.0,0.00021675,2]
[388813218,1759385444207,-500.0,0.00021675,2]
[388813219,1759385444216,-151.0,0.00021675,2]
[388813220,1759385444225,-500.0,0.00021675,2]
[388813221,1759385444235,-151.0,0.00021675,2]
[388813222,1759385444244,-151.0,0.00021675,2]
[388813223,1759385444253,-500.0,0.00021675,2]
[388813224,1759385444262,-151.0,0.00021675,2]
[388813225,1759385444271,-151.0,0.00021675,2]
[388813226,1759385444281,-500.0,0.00021773,2]
[388813227,1759385444290,-500.0,0.00021773,2]
[388813228,1759385444299,-500.0,0.00021773,2]
[388813229,1759385444308,-500.0,0.00021773,2]
[388813230,1759385444317,-500.0,0.00021773,2]
[388813231,1759385444326,-501.45657159,0.00021773,2]
[388813232,1759385444335,-500.0,0.00021773,2]
[388813233,1759385444344,-500.0,0.00021773,2]
[388813234,1759385444353,-5368.29278865,0.00021773,2]
[388813235,1759385444362,-376.04,0.0002179,3]
[388813236,1759385444371,-200.0,0.00021799,2]
[388813237,1759385444380,-161.53600708,0.00021799,2]
[388813238,1759385444389,-5404.18670531,0.000218,2]
[388813239,1759385444401,-360040.17413656,0.000218,2]
[388813240,1759385444410,-288.0,0.00021826,2]
[388813241,1759385444419,-283.0,0.00021879,2]
[388813242,1759385444428,-9552.0167026,0.0002188,2]
[388813243,1759385444437,-151.74107027,0.00021887,2]
[388813244,1759385444446,-500.0,0.00021887,2]
[388813245,1759385444455,-151.0,0.00021887,2]
[388813246,1759385444464,-500.0,0.00021887,2]
[388813247,1759385444474,-500.0,0.00021887,2]
[388813248,1759385444483,-151.0,0.00021887,2]
[388813249,1759385444492,-151.0,0.00021887,2]
[388813250,1759385444501,-151.0,0.00021949,2]
[388813251,1759385444510,-151.0,0.00021949,2]
[388813252,1759385444520,-151.73323949,0.00021949,2]
[388813253,1759385444530,-219.93735501,0.00021949,2]
[388813254,1759385444539,-159.26058098,0.00021949,2]
[388813255,1759385444548,-500.0,0.00021949,2]
[388813256,1759385444557,-531.41884253,0.00021949,2]
[388813257,1759385444567,-151.0,0.00021949,2]
[388813258,1759385444575,-503.0,0.00021949,2]
[388813259,1759385444585,-151.0,0.00021949,2]
[388813260,1759385444594,-155.09437818,0.00021949,2]
[388813261,1759385444604,-500.0,0.00021949,2]
[388813262,1759385444613,-176.59419669,0.00021949,2]
[388813263,1759385444622,-533.68355315,0.00021949,2]
[388813264,1759385444631,-151.0,0.00021949,2]
[388813265,1759385444640,-500.0,0.00021949,2]
[388813266,1759385444649,-151.0,0.00021949,2]
[388813267,1759385444658,-151.0,0.00021949,2]
[388813268,1759385444668,-500.0,0.00021973,2]
[388813269,1759385444677,-312.77498223,0.00021973,2]
[388813270,1759385444686,-500.0,0.00021973,2]
[388813271,1759385444696,-500.0,0.00021973,2]
[388813272,1759385444705,-500.0,0.00021973,2]
[388813273,1759385444713,-500.0,0.00021973,2]
[388813274,1759385444722,-503.43372055,0.00021973,2]
[388813275,1759385444731,-500.0,0.00021973,2]
[388813276,1759385444741,-500.0,0.00021973,2]
[388813277,1759385444751,-500.0,0.00021973,2]
[388813278,1759385444760,-500.0,0.00021973,2]
[388813279,1759385444769,-500.0,0.00021973,2]
[388813280,1759385444778,-500.0,0.00021973,2]
[388813281,1759385444788,-500.0,0.00021973,2]
[388813282,1759385444799,-500.0,0.00021973,2]
[388813283,1759385444810,-500.0,0.00021983,2]
[388813284,1759385444819,-279.34491511,0.00021983,2]
[388813285,1759385444829,-200.0,0.00021999,2]
[388813286,1759385444839,-200.58523692,0.00021999,2]
[388813287,1759385444849,-200.0,0.00021999,2]
[388813288,1759385444861,-200.0,0.00021999,2]
[388813289,1759385444872,-92526.4388555,0.00022,2]
[388813290,1759385444883,-6140.71,0.00022,2]
[388813291,1759385444892,-177.632646,0.00022,7]
[388813292,1759385444904,-162.027127,0.00022,7]
[388813293,1759385444913,-151.0,0.00022,7]
[388813294,1759385444923,-152.354403,0.00022,7]
[388813295,1759385444933,-151.0,0.00022,7]
[388813296,1759385444943,-151.0,0.00022,7]
[388813297,1759385444952,-184.264457,0.00022,7]
[388813298,1759385444961,-151.699416,0.00022,7]
[388813299,1759385444971,-7345.34913238,0.00022,2]
[388813300,1759385444980,-151.0,0.00022,7]
[388813301,1759385444989,-151.588254,0.00022,7]
[388813302,1759385444999,-151.0,0.00022,7]
[388813303,1759385445008,-151.0,0.00022,7]
[388813304,1759385445020,-280.073956,0.00022,7]
[388813305,1759385445030,-157.615,0.00022,7]
[388813306,1759385445039,-151.0,0.00022,7]
[388813307,1759385445048,-151.0,0.00022,7]
[388813308,1759385445058,-151.0,0.00022,7]
[388813309,1759385445067,-151.0,0.00022,7]
[388813310,1759385445076,-151.0,0.00022,7]
[388813311,1759385445086,-163.98399,0.00022158,2]
[388813312,1759385445095,-500.0,0.00022161,2]
[388813313,1759385445104,-151.0,0.00022161,2]
[388813314,1759385445114,-500.0,0.00022161,2]
[388813315,1759385445123,-500.0,0.00022161,2]
[388813316,1759385445133,-151.0,0.00022161,2]
[388813317,1759385445142,-151.0,0.00022161,2]
[388813318,1759385445151,-150.077,0.00022207,2]
[388813319,1759385445161,-151.0,0.00022223,2]
[388813320,1759385445170,-151.0,0.00022223,2]
[388813321,1759385445179,-500.0,0.00022223,2]
[388813322,1759385445190,-201.25091563,0.00022223,2]
[388813323,1759385445200,-503.0,0.00022223,2]
[388813324,1759385445209,-151.0,0.00022223,2]
[388813325,1759385445219,-500.0,0.00022223,2]
[388813326,1759385445228,-227.17077749,0.00022223,2]
[388813327,1759385445237,-500.0,0.00022223,2]
[388813328,1759385445247,-151.0,0.00022223,2]
[388813329,1759385445258,-151.0,0.00022223,2]
[388813330,1759385445269,-283.0,0.00022256,2]
[388813331,1759385445279,-220.265,0.00022306,2]
[388813332,1759385445289,-429.668,0.00022306,2]
[388813333,1759385445299,-1001.87882945,0.00022321,2]
[388813334,1759385445309,-1002.71436461,0.00022321,2]
[388813335,1759385445318,-1001.57650486,0.00022321,2]
[388813336,1759385445327,-1000.0,0.00022321,2]
[388813337,1759385445336,-508.98177916,0.00022321,2]
[388813338,1759385445345,-1000.0,0.00022321,2]
[388813339,1759385445355,-500.0,0.00022321,2]
[388813340,1759385445363,-979.0,0.0002234,2]
[388813341,1759385445373,-630.0,0.0002234,2]
[388813342,1759385445382,-2157.0,0.0002234,2]
[388813343,1759385445391,-283.0,0.00022392,2]
[388813344,1759385445400,-500.0,0.00022435,2]
[388813345,1759385445410,-151.0,0.00022435,2]
[388813346,1759385445420,-197.49503455,0.00022435,2]
[388813347,1759385445438,-500.0,0.00022435,2]
[388813348,1759385445456,-151.0,0.00022435,2]
[388813349,1759385445465,-151.0,0.00022435,2]
[388813350,1759385445611,-5368.29278861,0.00022467,2]
[388813351,1759385445621,-301.24208232,0.00022497,2]
[388813352,1759385445630,-201.13027473,0.00022497,2]
[388813353,1759385445639,-556.84572571,0.00022497,2]
[388813354,1759385445649,-503.0,0.00022497,2]
[388813355,1759385445659,-151.0,0.00022497,2]
[388813356,1759385445668,-500.0,0.00022497,2]
[388813357,1759385445678,-500.0,0.00022497,2]
[388813358,1759385445687,-151.0,0.00022497,2]
[388813359,1759385445696,-230.70321073,0.00022497,2]
[388813360,1759385445706,-500.0,0.00022521,2]
[388813361,1759385445715,-1000.0,0.00022521,2]
[388813362,1759385445724,-1000.0,0.00022521,2]
[388813363,1759385445733,-1000.0,0.00022521,2]
[388813364,1759385445743,-1000.0,0.00022521,2]
[388813365,1759385445752,-1000.0,0.00022521,2]
[388813366,1759385445762,-1000.0,0.00022521,2]
[388813367,1759385445771,-1000.0,0.00022521,2]
[388813368,1759385445780,-1000.0,0.00022521,2]
[388813369,1759385445790,-1005.98916651,0.00022521,2]
[388813370,1759385445800,-394.70114169,0.00022521,2]
[388813371,1759385445809,-1000.0,0.00022521,2]
[388813372,1759385445818,-502.4438723,0.00022521,2]
[388813373,1759385445827,-225.638793,0.00022521,7]
[388813374,1759385445837,-225.638793,0.00022521,7]
[388813375,1759385445847,-225.638793,0.00022521,7]
[388813376,1759385445856,-225.638793,0.00022521,7]
[388813377,1759385445870,-151.0,0.00022521,7]
[388813378,1759385445879,-151.0,0.00022521,7]
[388813379,1759385445889,-151.0,0.00022521,7]
[388813380,1759385445898,-151.0,0.00022521,7]
[388813381,1759385445910,-151.0,0.00022521,7]
[388813382,1759385445919,-157.282109,0.00022521,7]
[388813383,1759385445929,-151.0,0.00022521,7]
[388813384,1759385445939,-151.0,0.00022521,7]
[388813386,1759385445948,-153.589604,0.00022521,7]
[388813388,1759385445958,-151.0,0.00022521,7]
[388813390,1759385445967,-242.596328,0.00022521,7]
[388813392,1759385445976,-151.0,0.00022521,7]
[388813394,1759385445985,-151.0,0.00022521,7]
[388813395,1759385445995,-151.0,0.00022521,7]
[388813396,1759385446004,-151.0,0.00022521,7]
[388813397,1759385446014,-151.0,0.00022521,7]
[388813398,1759385446024,-1000.44687535,0.00022531,2]
[388813399,1759385446033,-151.0,0.00022531,7]
[388813400,1759385446042,-151.0,0.00022531,7]
[388813401,1759385446052,-151.0,0.00022531,7]
[388813402,1759385446061,-151.0,0.00022531,7]
[388813403,1759385446071,-151.0,0.00022531,7]
[388813404,1759385446081,-151.0,0.00022531,7]
[388813405,1759385446090,-151.0,0.00022531,7]
[388813406,1759385446100,-151.0,0.00022531,7]
[388813407,1759385446110,-163.98399,0.0002254,4]
[388813408,1759385446119,-160.0,0.00022556,2]
[388813409,1759385446129,-370.80580085,0.00022599,3]
[388813410,1759385446139,-420.0,0.00022613,2]
[388813411,1759385446148,-283.0,0.00022625,2]
[388813412,1759385446158,-174.3806047,0.00022709,2]
[388813413,1759385446167,-151.0,0.00022709,2]
[388813414,1759385446177,-590.97846703,0.00022709,2]
[388813415,1759385446186,-281.68568578,0.00022709,2]
[388813416,1759385446195,-151.0,0.00022709,2]
[388813417,1759385446205,-458.520804,0.0002274,7]
[388813418,1759385446215,-458.520804,0.0002274,7]
[388813419,1759385446224,-458.520804,0.0002274,7]
[388813420,1759385446233,-458.520804,0.0002274,7]
[388813421,1759385446243,-503.0,0.00022771,2]
[388813422,1759385446252,-269.54546804,0.00022771,2]
[388813423,1759385446263,-500.0,0.00022771,2]
[388813424,1759385446272,-306.05137794,0.00022771,2]
[388813425,1759385446283,-151.0,0.00022771,2]
[388813426,1759385446295,-6545.7,0.000228,2]
[388813427,1759385446305,-179.85611511,0.00022823,2]
[388813428,1759385446315,-507.57339348,0.00022868,2]
[388813429,1759385446324,-1500.0,0.00022868,2]
[388813430,1759385446333,-158.07,0.00022937,2]
[388813431,1759385446343,-152.01803034,0.00022983,2]
[388813432,1759385446352,-155.08854165,0.00022983,2]
[388813433,1759385446362,-160.0,0.00023,2]
[388813434,1759385446371,-503.0,0.00023045,2]
[388813435,1759385446380,-153.19353915,0.00023045,2]
[388813436,1759385446390,-161.88837584,0.00023045,2]
[388813437,1759385446399,-1504.6469514,0.00023068,2]
[388813438,1759385446408,-1512.48433995,0.00023068,2]
[388813439,1759385446418,-1503.15310287,0.00023068,2]
[388813440,1759385446427,-1008.27899005,0.00023068,2]
[388813441,1759385446437,-1002.59632812,0.00023068,2]
[388813443,1759385446446,-1504.3031916,0.00023068,2]
[388813445,1759385446455,-500.0,0.00023068,2]
[388813447,1759385446464,-260.0,0.00023104,2]
[388813448,1759385446474,-5000.0,0.00023111,2]
[388813449,1759385446483,-151.0,0.00023161,7]
[388813450,1759385446492,-151.0,0.00023161,7]
[388813451,1759385446502,-151.0,0.00023161,7]
[388813452,1759385446512,-151.0,0.00023161,7]
[388813453,1759385446521,-151.0,0.00023161,7]
[388813454,1759385446530,-153.422214,0.00023161,7]
[388813455,1759385446540,-5368.29278861,0.00023162,2]
[388813456,1759385446550,-151.0,0.00023257,7]
[388813457,1759385446559,-151.0,0.00023257,7]
[388813458,1759385446569,-224.470643,0.00023257,7]
[388813459,1759385446578,-503.0,0.00023319,2]
[388813460,1759385446587,-151.0,0.000234,7]
[388813461,1759385446596,-1019.1449572,0.00023416,2]
[388813462,1759385446606,-225.638793,0.00023462,7]
[388813463,1759385446615,-225.638793,0.00023462,7]
[388813464,1759385446625,-225.638793,0.00023462,7]
[388813465,1759385446634,-225.638793,0.00023462,7]
[388813466,1759385446643,-151.0,0.00023462,7]
[388813467,1759385446654,-151.0,0.00023462,7]
[388813468,1759385446664,-151.0,0.00023462,7]
[388813469,1759385446673,-151.0,0.00023462,7]
[388813470,1759385446682,-293.36416222,0.00023462,7]
[388813471,1759385446692,-160.0,0.00023462,7]
[388813472,1759385446702,-900.0,0.000235,2]
[388813473,1759385446712,-600.0,0.00023519,2]
[388813474,1759385446722,-163.98399,0.0002352,26]
[388813475,1759385446733,-159.47398934,0.00023589,2]
[388813476,1759385446743,-503.0,0.00023593,2]
[388813477,1759385446752,-6140.71,0.000236,2]
[388813478,1759385446762,-241.6,0.000236,7]
[388813479,1759385446771,-151.0,0.000236,7]
[388813480,1759385446781,-151.0,0.000236,7]
[388813481,1759385446790,-151.0,0.000236,7]
[388813482,1759385446800,-151.0,0.000236,7]
[388813483,1759385446810,-151.0,0.000236,7]
[388813484,1759385446819,-151.0,0.000236,7]
[388813485,1759385446829,-163.98399,0.00023627,7]
[388813486,1759385446839,-360.0,0.00023652,2]
[388813487,1759385446848,-458.520804,0.00023675,7]
[388813488,1759385446859,-458.520804,0.00023675,7]
[388813489,1759385446871,-458.520804,0.00023675,7]
[388813490,1759385446881,-458.520804,0.00023675,7]
[388813491,1759385446890,-151.0,0.000237,10]
[388813492,1759385446900,-600.0,0.00023764,2]
[388813493,1759385446912,-258.0,0.00023808,11]
[388813494,1759385446921,-5368.29278861,0.00023856,2]
[388813495,1759385446930,-503.0,0.00023867,2]
[388813496,1759385446942,-159.47398934,0.0002389,2]
[388813497,1759385446952,-163.98399,0.00023902,10]
[388813498,1759385446962,-500.66638074,0.00023973,2]
[388813499,1759385446972,-500.0,0.00023973,2]
[388813500,1759385446981,-501.93965128,0.00023973,2]
[388813501,1759385446991,-500.8170623,0.00023973,2]
[388813502,1759385447001,-500.77194799,0.00023973,2]
[388813503,1759385447010,-501.57190292,0.00023973,2]
[388813504,1759385447020,-502.17408398,0.00023973,2]
[388813505,1759385447029,-502.19736655,0.00023973,2]
[388813506,1759385447039,-500.0,0.00023973,2]
[388813507,1759385447048,-504.58160478,0.00023973,2]
[388813508,1759385447057,-500.0,0.00023973,2]
[388813509,1759385447067,-500.0,0.00023973,2]
[388813510,1759385447076,-500.0,0.00023973,2]
[388813511,1759385447085,-204.1389335,0.00023973,2]
[388813512,1759385447094,-390.217,0.0002399,5]
[388813513,1759385447104,-200.0,0.00023999,2]
[388813514,1759385447113,-13450.55489238,0.00024,2]
[388813515,1759385447133,-20601.69365,0.00024,2]
[388813516,1759385447201,500.0,0.00033551,60]
[388813517,1759385447268,500.0,0.00033551,60]
[388813518,1759385447336,500.0,0.00033551,60]
[388813519,1759385447424,500.0,0.00033551,60]
[388813520,1759385447497,500.0,0.00033551,60]
[388813521,1759385447570,500.0,0.00033551,60]
[388813522,1759385447642,500.0,0.00033551,60]
[388813523,1759385447719,616.77,0.00033551,60]
[388813524,1759385447741,-160.0,0.00020817,2]
[388813525,1759385447750,-151.0,0.00022,7]
[388813526,1759385447759,-156.176195,0.00022521,7]
[388813527,1759385447768,-1728.44499507,0.00024,2]
[388813528,1759385447851,500.0,0.00033551,60]
[388813529,1759385447938,500.0,0.00033551,60]
[388813530,1759385448010,500.0,0.00033551,60]
[388813531,1759385448079,500.0,0.00033551,60]
[388813532,1759385448148,500.0,0.00033551,60]
[388813533,1759385448214,500.0,0.00033551,60]
[388813534,1759385448281,500.0,0.00033551,60]
[388813535,1759385448346,500.0,0.00033551,60]
[388813536,1759385448418,500.0,0.00033551,60]
[388813537,1759385448486,500.0,0.00033551,60]
[388813538,1759385448554,500.0,0.00033551,60]